[Event "84th ESP-ch 2019"]
[Site "Marbella"]
[Date "2019.11.22"]
[Round "7.18"]
[White "Hernando Rodrigo, Inmaculada"]
[Black "Valmana Canto, Jaime"]
[Result "0-1"]
[ECO "A46"]
[WhiteElo "1863"]
[BlackElo "2416"]
[Annotator "ChessBase"]
[PlyCount "70"]
[EventDate "2019.11.16"]
[EventType "swiss"]
[EventCountry "ESP"]
[SourceTitle "playchess.com"]
[Source "ChessBase"]
[SourceQuality "1"]
[TimeControl "5400+30"]

1. d4 {[%emt 0:00:00]} Nf6 {[%emt 0:00:00]} 2. Nf3 {[%emt 0:00:00]} d6 {[%emt 0:00:15]} 3. h3 {[%emt 0:00:13]} g6 {[%emt 0:00:24]} 4. Bf4 {[%emt 0:00:24]} Bg7 {[%emt 0:00:09]} 5. e3 {[%emt 0:00:31]} O-O {[%emt 0:00:10]} 6. Be2 {[%emt 0:00:27]} Nbd7 {[%emt 0:00:18]} 7. O-O {[%emt 0:00:35]} b6 {[%emt 0:00:08]} 8. Nbd2 {[%emt 0:01:11]} Bb7 {[%emt 0:00:10]} 9. c3 {[%emt 0:01:06]} Ne4 {[%emt 0:00:09]} 10. Nxe4 {[%emt 0:04:49]} Bxe4 {[%emt 0:00:09]} 11. Nd2 {[%emt 0:00:33]} Bb7 {[%emt 0:00:08]} 12. Bf3 {[%emt 0:02:53]} Qc8 {[%emt 0:00:08]} 13. Bxb7 {[%emt 0:01:15]} Qxb7 {[%emt 0:00:10]} 14. Qg4 {[%emt 0:03:19]} c5 {[%emt 0:08:26]} 15. Qh4 {[%emt 0:18:05]} Rfe8 {[%emt 0:08:08]} 16. Bh6 {[%emt 0:04:33]} Bh8 {[%emt 0:04:06]} 17. f4 {[%emt 0:02:12]} f5 {[%emt 0:02:16]} 18. Nf3 {[%emt 0:06:26]} Nf6 {[%emt 0:01:02]} 19. Ng5 {[%emt 0:02:23]} e6 {[%emt 0:08:28]} 20. Rae1 {[%emt 0:08:18]} Ne4 {[%emt 0:01:25]} 21. Nxe4 {[%emt 0:03:33]} Qxe4 {[%emt 0:00:12]} 22. Bg5 {[%emt 0:01:16]} Bg7 {[%emt 0:14:31]} 23. Rf3 {[%emt 0:07:41]} Kf7 {[%emt 0:01:22]} 24. Rg3 {[%emt 0:04:17]} h6 {[%emt 0:08:32]} 25. dxc5 {[%emt 0:09:06]} bxc5 {[%emt 0:00:33]} 26. Rd1 {[%emt 0:01:07]} d5 {[%emt 0:00:13]} 27. c4 {[%emt 0:03:13]} Qxc4 {[%emt 0:12:01]} 28. Bxh6 {[%emt 0:10:08]} Bf6 {[%emt 0:00:19]} 29. Rxg6 {[%emt 0:00:12]} Bxh4 {[%emt 0:01:07]} 30. Rg7+ {[%emt 0:00:03]} Kf6 {[%emt 0:00:10]} 31. g4 {[%emt 0:00:10]} fxg4 {[%emt 0:01:07]} 32. hxg4 {[%emt 0:00:01]} Qe2 {[%emt 0:01:21]} 33. g5+ {[%emt 0:00:33]} Kf5 {[%emt 0:00:07]} 34. e4+ {[%emt 0:01:08]} Kg4 {[%emt 0:00:24]} 35. Rf1 {[%emt 0:00:26]} Kg3 {[%emt 0:00:36]} 0-1

[Event "84th ESP-ch 2019"]
[Site "Marbella"]
[Date "2019.11.22"]
[Round "7.19"]
[White "Garza Marco, Sergio"]
[Black "Hernandez Roldan, Miguel"]
[Result "1-0"]
[ECO "A46"]
[WhiteElo "2400"]
[BlackElo "2229"]
[Annotator "ChessBase"]
[PlyCount "78"]
[EventDate "2019.11.16"]
[EventType "swiss"]
[EventCountry "ESP"]
[SourceTitle "playchess.com"]
[Source "ChessBase"]
[SourceQuality "1"]
[TimeControl "5400+30"]

1. d4 {[%emt 0:00:00]} Nf6 {[%emt 0:00:00]} 2. Nf3 {[%emt 0:00:00]} e6 {[%emt 0:00:15]} 3. Bf4 {[%emt 0:00:43]} c5 {[%emt 0:00:59]} 4. e3 {[%emt 0:00:56]} d5 {[%emt 0:02:24]} 5. c3 {[%emt 0:01:42]} Nc6 {[%emt 0:05:23]} 6. Nbd2 {[%emt 0:00:22]} Bd6 {[%emt 0:00:08]} 7. Bg3 {[%emt 0:00:06]} Qe7 {[%emt 0:04:53]} 8. Ne5 {[%emt 0:01:33]} Bxe5 {[%emt 0:00:43]} 9. dxe5 {[%emt 0:00:07]} Nd7 {[%emt 0:00:09]} 10. Bb5 {[%emt 0:14:03]} f5 {[%emt 0:06:15]} 11. exf6 {[%emt 0:09:48]} Qxf6 {[%emt 0:00:25]} 12. Qh5+ {[%emt 0:01:53]} Qf7 {[%emt 0:00:59]} 13. Qh4 {[%emt 0:01:05]} O-O {[%emt 0:07:41]} 14. Nf3 {[%emt 0:01:48]} Qf6 {[%emt 0:03:41]} 15. Qxf6 {[%emt 0:01:45]} gxf6 {[%emt 0:01:25]} 16. O-O-O {[%emt 0:00:42]} a6 {[%emt 0:03:32]} 17. Ba4 {[%emt 0:00:26]} b5 {[%emt 0:00:22]} 18. Bc2 {[%emt 0:00:02]} Nde5 {[%emt 0:02:52]} 19. Nd2 {[%emt 0:01:15]} Na5 {[%emt 0:01:32]} 20. e4 {[%emt 0:04:03]} d4 {[%emt 0:12:18]} 21. cxd4 {[%emt 0:01:07]} cxd4 {[%emt 0:00:09]} 22. Nb3 {[%emt 0:00:38]} Nxb3+ {[%emt 0:01:44]} 23. Bxb3 {[%emt 0:00:06]} Rd8 {[%emt 0:04:53]} 24. Kb1 {[%emt 0:01:12]} a5 {[%emt 0:00:46]} 25. Rc1 {[%emt 0:00:37]} a4 {[%emt 0:00:41]} 26. Rxc8 {[%emt 0:00:52]} axb3 {[%emt 0:02:07]} 27. Rxd8+ {[%emt 0:00:07]} Rxd8 {[%emt 0:00:07]} 28. axb3 {[%emt 0:00:05]} Nd3 {[%emt 0:02:31]} 29. f3 {[%emt 0:01:26]} Nc5 {[%emt 0:01:37]} 30. Bh4 {[%emt 0:06:24]} Kf7 {[%emt 0:05:52]} 31. e5 {[%emt 0:03:54]} Nxb3 {[%emt 0:00:06]} 32. Bxf6 {[%emt 0:02:00]} Rc8 {[%emt 0:01:38]} 33. Rd1 {[%emt 0:01:05]} Rc4 {[%emt 0:00:02]} 34. g4 {[%emt 0:03:11]} b4 {[%emt 0:05:18]} 35. Bh4 {[%emt 0:02:21]} Rc5 {[%emt 0:02:27]} 36. Bg3 {[%emt 0:01:48]} Kg6 {[%emt 0:00:22]} 37. Rd3 {[%emt 0:02:49]} Nc1 {[%emt 0:03:17]} 38. Rxd4 {[%emt 0:01:47]} b3 {[%emt 0:00:05]} 39. Rb4 {[%emt 0:06:08]} Rc2 {[%emt 0:00:01]} 1-0

[Event "84th ESP-ch 2019"]
[Site "Marbella"]
[Date "2019.11.22"]
[Round "7.20"]
[White "Suarez Uriel, Adrian"]
[Black "Rey Malde, Henrique"]
[Result "1-0"]
[ECO "A04"]
[WhiteElo "2389"]
[BlackElo "2209"]
[Annotator "ChessBase"]
[PlyCount "87"]
[EventDate "2019.11.16"]
[EventType "swiss"]
[EventCountry "ESP"]
[SourceTitle "playchess.com"]
[Source "ChessBase"]
[SourceQuality "1"]
[TimeControl "5400+30"]

1. Nf3 {[%emt 0:00:00]} d6 {[%emt 0:07:09]} 2. d4 {[%emt 0:00:25]} Nf6 {[%emt 0:00:14]} 3. c4 {[%emt 0:00:05]} Nbd7 {[%emt 0:01:10]} 4. Nc3 {[%emt 0:00:12]} e5 {[%emt 0:00:08]} 5. g3 {[%emt 0:00:39]} c6 {[%emt 0:00:18]} 6. Bg2 {[%emt 0:00:29]} e4 {[%emt 0:00:07]} 7. Nh4 {[%emt 0:00:51]} d5 {[%emt 0:00:17]} 8. cxd5 {[%emt 0:00:14]} cxd5 {[%emt 0:00:07]} 9. O-O {[%emt 0:02:04]} Bb4 {[%emt 0:04:06]} 10. Qb3 {[%emt 0:02:16]} Bxc3 {[%emt 0:00:07]} 11. bxc3 {[%emt 0:00:02]} O-O {[%emt 0:00:49]} 12. Ba3 {[%emt 0:00:54]} Re8 {[%emt 0:00:18]} 13. Nf5 {[%emt 0:00:24]} Nb6 {[%emt 0:19:02]} 14. Nd6 {[%emt 0:00:25]} Nc4 {[%emt 0:00:07]} 15. Nxe8 {[%emt 0:03:41]} Qxe8 {[%emt 0:01:44]} 16. Bc1 {[%emt 0:00:02]} h6 {[%emt 0:04:15]} 17. Bf4 {[%emt 0:05:15]} b6 {[%emt 0:03:23]} 18. h3 {[%emt 0:04:58]} g5 {[%emt 0:12:16]} 19. Bc1 {[%emt 0:03:41]} Bd7 {[%emt 0:00:29]} 20. a4 {[%emt 0:00:15]} Rc8 {[%emt 0:03:25]} 21. Ra2 {[%emt 0:00:56]} Kg7 {[%emt 0:01:52]} 22. Qd1 {[%emt 0:05:05]} Na5 {[%emt 0:07:03]} 23. f4 {[%emt 0:03:10]} g4 {[%emt 0:00:27]} 24. f5 {[%emt 0:00:09]} Nc4 {[%emt 0:06:04]} 25. Bf4 {[%emt 0:00:45]} Kh7 {[%emt 0:11:16]} 26. e3 {[%emt 0:00:43]} Qg8 {[%emt 0:03:01]} 27. Qe2 {[%emt 0:00:42]} h5 {[%emt 0:02:06]} 28. Be5 {[%emt 0:00:33]} Qg5 {[%emt 0:01:28]} 29. h4 {[%emt 0:04:45]} Qh6 {[%emt 0:00:07]} 30. Qf2 {[%emt 0:00:19]} Rc6 {[%emt 0:03:11]} 31. Re1 {[%emt 0:01:02]} Qf8 {[%emt 0:00:59]} 32. Qf4 {[%emt 0:00:30]} Qh6 {[%emt 0:00:04]} 33. Qg5 {[%emt 0:00:38]} Qxg5 {[%emt 0:00:37]} 34. hxg5 {[%emt 0:00:02]} Ne8 {[%emt 0:00:06]} 35. Rf2 {[%emt 0:01:18]} f6 {[%emt 0:05:00]} 36. gxf6 {[%emt 0:00:02]} Nxf6 {[%emt 0:00:11]} 37. Bf1 {[%emt 0:00:05]} Kg7 {[%emt 0:01:08]} 38. Rh2 {[%emt 0:00:22]} Be8 {[%emt 0:02:17]} 39. Rb1 {[%emt 0:02:05]} Bf7 {[%emt 0:01:44]} 40. Bxc4 {[%emt 0:01:56]} Rxc4 {[%emt 0:00:04]} 41. a5 {[%emt 0:00:02]} bxa5 {[%emt 0:00:56]} 42. Ra2 {[%emt 0:00:03]} a4 {[%emt 0:01:06]} 43. Rb7 {[%emt 0:00:22]} a5 {[%emt 0:00:39]} 44. Rb6 {[%emt 0:00:05]} 1-0

[Event "84th ESP-ch 2019"]
[Site "Marbella"]
[Date "2019.11.22"]
[Round "7.21"]
[White "Represa Perez, Mireya"]
[Black "Vega Gutierrez, Sabrina"]
[Result "0-1"]
[ECO "B40"]
[WhiteElo "2189"]
[BlackElo "2374"]
[Annotator "ChessBase"]
[PlyCount "62"]
[EventDate "2019.11.16"]
[EventType "swiss"]
[EventCountry "ESP"]
[SourceTitle "playchess.com"]
[Source "ChessBase"]
[SourceQuality "1"]
[TimeControl "5400+30"]

1. e4 {[%emt 0:00:00]} c5 {[%emt 0:00:00]} 2. Nf3 {[%emt 0:00:00]} e6 {[%emt 0:00:00]} 3. g3 {[%emt 0:00:51]} Nc6 {[%emt 0:00:14]} 4. Bg2 {[%emt 0:00:06]} Nf6 {[%emt 0:02:30]} 5. Nc3 {[%emt 0:01:17]} d6 {[%emt 0:00:35]} 6. d4 {[%emt 0:01:51]} cxd4 {[%emt 0:00:11]} 7. Nxd4 {[%emt 0:00:05]} Bd7 {[%emt 0:00:19]} 8. O-O {[%emt 0:01:00]} Be7 {[%emt 0:00:16]} 9. Nb3 {[%emt 0:03:37]} O-O {[%emt 0:00:33]} 10. h3 {[%emt 0:04:09]} Ne5 {[%emt 0:13:30]} 11. a4 {[%emt 0:07:18]} a6 {[%emt 0:04:42]} 12. g4 {[%emt 0:06:55]} h6 {[%emt 0:01:07]} 13. Kh1 {[%emt 0:02:50]} Rc8 {[%emt 0:07:37]} 14. f4 {[%emt 0:03:37]} Ng6 {[%emt 0:18:05]} 15. Rg1 {[%emt 0:14:14]} Nh4 {[%emt 0:03:53]} 16. g5 {[%emt 0:12:46]} hxg5 {[%emt 0:00:44]} 17. fxg5 {[%emt 0:00:08]} Nh7 {[%emt 0:02:49]} 18. Bf1 {[%emt 0:01:49]} d5 {[%emt 0:22:32]} 19. Bd3 {[%emt 0:13:05]} dxe4 {[%emt 0:01:34]} 20. Nxe4 {[%emt 0:06:59]} Bc6 {[%emt 0:00:18]} 21. Qg4 {[%emt 0:00:51]} Ng6 {[%emt 0:01:00]} 22. Kh2 {[%emt 0:06:43]} Ne5 {[%emt 0:01:35]} 23. Qg3 {[%emt 0:01:02]} Nxd3 {[%emt 0:01:41]} 24. cxd3 {[%emt 0:00:14]} Qd5 {[%emt 0:07:44]} 25. Nbd2 {[%emt 0:03:27]} Rcd8 {[%emt 0:00:36]} 26. g6 {[%emt 0:06:14]} fxg6 {[%emt 0:00:12]} 27. Qxg6 {[%emt 0:01:09]} Rf2+ {[%emt 0:02:57]} 28. Rg2 {[%emt 0:00:56]} Rxg2+ {[%emt 0:01:18]} 29. Kxg2 {[%emt 0:00:05]} Kh8 {[%emt 0:01:06]} 30. b3 {[%emt 0:00:56]} Qxd3 {[%emt 0:00:57]} 31. Bb2 {[%emt 0:00:38]} Qxd2+ {[%emt 0:00:16]} 0-1

[Event "84th ESP-ch 2019"]
[Site "Marbella"]
[Date "2019.11.22"]
[Round "7.23"]
[White "Martin Carmona, Gaston Manuel"]
[Black "Martin Hernandez, Ruben"]
[Result "0-1"]
[ECO "B48"]
[WhiteElo "2304"]
[BlackElo "2206"]
[Annotator "ChessBase"]
[PlyCount "70"]
[EventDate "2019.11.16"]
[EventType "swiss"]
[EventCountry "ESP"]
[SourceTitle "playchess.com"]
[Source "ChessBase"]
[SourceQuality "1"]
[TimeControl "5400+30"]

1. e4 {[%emt 0:00:00]} c5 {[%emt 0:00:26]} 2. Nf3 {[%emt 0:00:35]} e6 {[%emt 0:00:07]} 3. d4 {[%emt 0:00:19]} cxd4 {[%emt 0:00:06]} 4. Nxd4 {[%emt 0:00:12]} Nc6 {[%emt 0:00:10]} 5. Nc3 {[%emt 0:00:40]} Qc7 {[%emt 0:00:07]} 6. Be3 {[%emt 0:00:37]} a6 {[%emt 0:00:09]} 7. a3 {[%emt 0:01:05]} Nf6 {[%emt 0:01:04]} 8. f4 {[%emt 0:00:22]} d6 {[%emt 0:06:04]} 9. Qf3 {[%emt 0:00:45]} Bd7 {[%emt 0:06:28]} 10. O-O-O {[%emt 0:03:59]} h5 {[%emt 0:02:17]} 11. Be2 {[%emt 0:07:04]} Rc8 {[%emt 0:02:28]} 12. f5 {[%emt 0:08:30]} e5 {[%emt 0:05:23]} 13. Nxc6 {[%emt 0:07:42]} Bxc6 {[%emt 0:00:15]} 14. Bd3 {[%emt 0:09:52]} b5 {[%emt 0:04:30]} 15. Nd5 {[%emt 0:18:22]} Bxd5 {[%emt 0:03:56]} 16. exd5 {[%emt 0:00:06]} Be7 {[%emt 0:02:42]} 17. g3 {[%emt 0:01:30]} Qb7 {[%emt 0:04:44]} 18. Kb1 {[%emt 0:00:23]} O-O {[%emt 0:03:15]} 19. Bg5 {[%emt 0:11:03]} e4 {[%emt 0:02:24]} 20. Bxe4 {[%emt 0:05:59]} Nxe4 {[%emt 0:00:07]} 21. Bxe7 {[%emt 0:00:05]} Qxe7 {[%emt 0:00:14]} 22. Qxh5 {[%emt 0:00:15]} Nf6 {[%emt 0:05:31]} 23. Qf3 {[%emt 0:00:49]} Rfe8 {[%emt 0:00:24]} 24. Rhe1 {[%emt 0:03:27]} Qxe1 {[%emt 0:00:39]} 25. Rxe1 {[%emt 0:00:00]} Rxe1+ {[%emt 0:00:00]} 26. Ka2 {[%emt 0:00:00]} Rxc2 {[%emt 0:00:14]} 27. Kb3 {[%emt 0:00:00]} Rc5 {[%emt 0:07:26]} 28. g4 {[%emt 0:01:44]} a5 {[%emt 0:00:39]} 29. Qf2 {[%emt 0:02:18]} a4+ {[%emt 0:00:30]} 30. Kb4 {[%emt 0:00:05]} Re8 {[%emt 0:08:37]} 31. Ka5 {[%emt 0:00:54]} b4+ {[%emt 0:01:18]} 32. Kxa4 {[%emt 0:00:33]} bxa3 {[%emt 0:00:18]} 33. Kxa3 {[%emt 0:00:54]} Ra8+ {[%emt 0:00:30]} 34. Kb3 {[%emt 0:00:14]} Nxd5 {[%emt 0:01:15]} 35. Qd4 {[%emt 0:01:02]} Rb8+ {[%emt 0:00:43]} 0-1

[Event "84th ESP-ch 2019"]
[Site "Marbella"]
[Date "2019.11.22"]
[Round "7.24"]
[White "De La Cruz Revilla, Miguel"]
[Black "Zurano Lopez, Pedro"]
[Result "1/2-1/2"]
[ECO "B10"]
[WhiteElo "2138"]
[BlackElo "2292"]
[Annotator "ChessBase"]
[PlyCount "60"]
[EventDate "2019.11.16"]
[EventType "swiss"]
[EventCountry "ESP"]
[SourceTitle "playchess.com"]
[Source "ChessBase"]
[SourceQuality "1"]
[TimeControl "5400+30"]

1. e4 {[%emt 0:00:00]} c6 {[%emt 0:00:00]} 2. Nc3 {[%emt 0:00:15]} d5 {[%emt 0:00:00]} 3. Nf3 {[%emt 0:00:12]} dxe4 {[%emt 0:03:44]} 4. Nxe4 {[%emt 0:00:08]} Nf6 {[%emt 0:00:04]} 5. Qe2 {[%emt 0:00:15]} Na6 {[%emt 0:02:21]} 6. Nxf6+ {[%emt 0:02:22]} gxf6 {[%emt 0:01:56]} 7. d4 {[%emt 0:00:29]} Bf5 {[%emt 0:03:19]} 8. c3 {[%emt 0:06:53]} Qd7 {[%emt 0:05:04]} 9. g3 {[%emt 0:06:05]} h5 {[%emt 0:03:36]} 10. Nh4 {[%emt 0:02:40]} Bh3 {[%emt 0:08:47]} 11. Bxh3 {[%emt 0:00:57]} Qxh3 {[%emt 0:00:06]} 12. Bf4 {[%emt 0:00:27]} O-O-O {[%emt 0:03:31]} 13. O-O-O {[%emt 0:00:27]} Nc7 {[%emt 0:07:00]} 14. Kb1 {[%emt 0:13:40]} Nd5 {[%emt 0:08:02]} 15. Bc1 {[%emt 0:00:19]} Qg4 {[%emt 0:01:02]} 16. f3 {[%emt 0:00:34]} Qd7 {[%emt 0:00:31]} 17. Rhe1 {[%emt 0:11:18]} e6 {[%emt 0:05:15]} 18. f4 {[%emt 0:05:00]} f5 {[%emt 0:01:41]} 19. Nf3 {[%emt 0:03:09]} Qc7 {[%emt 0:03:21]} 20. Be3 {[%emt 0:11:23]} Kb8 {[%emt 0:07:54]} 21. c4 {[%emt 0:00:52]} Nxe3 {[%emt 0:04:19]} 22. Qxe3 {[%emt 0:00:37]} Bg7 {[%emt 0:01:24]} 23. Qb3 {[%emt 0:07:00]} Rd6 {[%emt 0:01:21]} 24. Rd2 {[%emt 0:04:40]} Rhd8 {[%emt 0:02:37]} 25. Red1 {[%emt 0:00:01]} Qb6 {[%emt 0:03:30]} 26. Qxb6 {[%emt 0:05:56]} axb6 {[%emt 0:00:04]} 27. a4 {[%emt 0:00:25]} Kc7 {[%emt 0:02:35]} 28. Kc2 {[%emt 0:00:33]} Ra8 {[%emt 0:00:36]} 29. Kb3 {[%emt 0:00:36]} Bf6 {[%emt 0:01:03]} 30. Ne5 {[%emt 0:01:53]} Bxe5 {[%emt 0:01:56]} 1/2-1/2

[Event "84th ESP-ch 2019"]
[Site "Marbella"]
[Date "2019.11.22"]
[Round "7.25"]
[White "Medina Romero, Jose"]
[Black "Hernando Rodrigo, Julio Antonio"]
[Result "0-1"]
[ECO "A45"]
[WhiteElo "2083"]
[BlackElo "2271"]
[Annotator "ChessBase"]
[PlyCount "80"]
[EventDate "2019.11.16"]
[EventType "swiss"]
[EventCountry "ESP"]
[SourceTitle "playchess.com"]
[Source "ChessBase"]
[SourceQuality "1"]
[TimeControl "5400+30"]

1. d4 Nf6 2. Bg5 c5 3. Bxf6 gxf6 4. d5 Qb6 5. Qc1 Bh6 6. e3 d6 7. c4 Nd7 8. Nc3 f5 9. Nf3 Nf6 10. Bd3 e5 11. dxe6 fxe6 12. Qc2 Bd7 13. O-O-O Bc6 14. Kb1 Rg8 15. Bxf5 exf5 16. Qxf5 Qd8 17. Qe6+ Qe7 18. Rxd6 Qxe6 19. Rxe6+ Kf7 20. Rd6 Rxg2 21. Ne5+ Ke7 22. Rd2 Rag8 23. Nxc6+ bxc6 24. Kc2 Rd8 25. Re2 Ng4 26. Ne4 Kf7 27. Rhe1 Rxh2 28. Nxc5 Rxf2 29. Rxf2+ Nxf2 30. Re2 Ng4 31. e4 Ne3+ 32. Kb3 Rb8+ 33. Kc3 Bg7+ 34. Kd3 Ng4 35. b3 h5 36. e5 Bxe5 37. Ke4 Bd6 38. Kd4 h4 39. Ne4 Rd8 40. Rg2 Bb4+ 0-1

[Event "84th ESP-ch 2019"]
[Site "Marbella"]
[Date "2019.11.22"]
[Round "7.26"]
[White "Jimenez Ruano, Adrian"]
[Black "Antonano Fedz-Quincoces, Avelino"]
[Result "1-0"]
[ECO "B27"]
[WhiteElo "2269"]
[BlackElo "2021"]
[Annotator "NA"]
[PlyCount "74"]
[EventDate "2019.11.16"]
[EventType "swiss"]
[EventCountry "ESP"]
[SourceTitle "playchess.com"]
[Source "ChessBase"]
[SourceQuality "1"]
[TimeControl "5400+30"]

1. Nf3 {[%emt 0:00:00]} c5 {[%emt 0:00:00]} 2. e4 {[%emt 0:00:00]} g6 {[%emt 0:00:00]} 3. c4 {[%emt 0:00:00]} Bh6 {[%emt 0:02:43]} 4. d4 {[%emt 0:19:36]} Bxc1 5. Qxc1 cxd4 {[%emt 0:01:12]} 6. Nxd4 {[%emt 0:00:55]} Nc6 {[%emt 0:02:00]} 7. Nxc6 {[%emt 0:04:04]} dxc6 {[%emt 0:00:11]} 8. Nc3 {[%emt 0:05:45]} e5 {[%emt 0:03:29]} 9. Be2 {[%emt 0:00:33]} Be6 {[%emt 0:10:56]} 10. O-O {[%emt 0:00:38]} g5 {[%emt 0:13:36]} 11. Na4 {[%emt 0:26:57]} b6 {[%emt 0:09:08]} 12. Qc3 {[%emt 0:00:18]} Qf6 {[%emt 0:01:15]} 13. b4 {[%emt 0:09:25]} Ne7 {[%emt 0:01:45]} 14. c5 {[%emt 0:00:30]} b5 {[%emt 0:02:49]} 15. Nb2 {[%emt 0:00:02]} O-O {[%emt 0:00:38]} 16. h4 {[%emt 0:04:24]} Ng6 {[%emt 0:05:49]} 17. hxg5 {[%emt 0:14:14]} Qxg5 {[%emt 0:00:04]} 18. Rfd1 {[%emt 0:02:39]} Nf4 {[%emt 0:06:04]} 19. Qf3 {[%emt 0:00:03]} h5 {[%emt 0:05:49]} 20. Re1 {[%emt 0:00:05]} Kh8 {[%emt 0:13:54]} 21. Nd3 {[%emt 0:00:51]} Bg4 {[%emt 0:01:06]} 22. Qg3 {[%emt 0:00:29]} Rg8 {[%emt 0:01:56]} 23. f3 {[%emt 0:01:56]} Nxg2 {[%emt 0:06:38]} 24. fxg4 {[%emt 0:01:13]} Nxe1 {[%emt 0:00:14]} 25. Rxe1 {[%emt 0:00:31]} f6 {[%emt 0:01:24]} 26. Kf2 {[%emt 0:01:17]} Rg6 {[%emt 0:01:46]} 27. Rh1 {[%emt 0:00:16]} Rag8 {[%emt 0:00:25]} 28. Qe3 {[%emt 0:00:50]} h4 {[%emt 0:02:11]} 29. Qxg5 {[%emt 0:00:45]} fxg5 {[%emt 0:00:14]} 30. Nxe5 {[%emt 0:00:53]} Rf8+ {[%emt 0:01:26]} 31. Ke3 {[%emt 0:00:18]} Re6 {[%emt 0:00:22]} 32. Nf3 {[%emt 0:00:03]} Rg8 {[%emt 0:01:23]} 33. Rd1 {[%emt 0:00:39]} Rh6 {[%emt 0:04:16]} 34. Rd6 {[%emt 0:00:53]} Rgg6 {[%emt 0:00:25]} 35. Nxg5 {[%emt 0:00:57]} Rxd6 {[%emt 0:00:39]} 36. cxd6 {[%emt 0:00:03]} Kg7 {[%emt 0:01:36]} 37. d7 {[%emt 0:00:06]} Rd6 {[%emt 0:00:08]} 1-0

[Event "84th ESP-ch 2019"]
[Site "Marbella"]
[Date "2019.11.22"]
[Round "7.27"]
[White "Pindado Campos, Raul"]
[Black "Moral Garcia, Serafin"]
[Result "0-1"]
[ECO "D73"]
[WhiteElo "2100"]
[BlackElo "2267"]
[Annotator "NA"]
[PlyCount "112"]
[EventDate "2019.11.16"]
[EventType "swiss"]
[EventCountry "ESP"]
[SourceTitle "playchess.com"]
[Source "ChessBase"]
[SourceQuality "1"]
[TimeControl "5400+30"]

1. d4 {[%emt 0:00:00]} Nf6 {[%emt 0:00:00]} 2. c4 {[%emt 0:00:00]} g6 {[%emt 0:00:00]} 3. Nf3 {[%emt 0:00:08]} Bg7 {[%emt 0:00:08]} 4. g3 {[%emt 0:00:08]} d5 {[%emt 0:00:03]} 5. Bg2 {[%emt 0:00:48]} dxc4 {[%emt 0:00:25]} 6. O-O {[%emt 0:00:12]} O-O {[%emt 0:00:19]} 7. Na3 {[%emt 0:00:43]} c3 {[%emt 0:00:09]} 8. bxc3 {[%emt 0:03:27]} c5 {[%emt 0:00:28]} 9. Ne5 {[%emt 0:03:35]} Nc6 {[%emt 0:00:08]} 10. Nxc6 {[%emt 0:06:44]} bxc6 {[%emt 0:00:09]} 11. Nc4 {[%emt 0:16:07] D77: Fianchetto Grünfeld: 6 0-0: Replies other than 6...c6} Nd5 {[%emt 0:06:28]} 12. Bb2 {[%emt 0:20:24]} (12. Bd2 Ba6 13. Ne5 Qd6 14. Re1 cxd4 15. cxd4 Bxe5 16. dxe5 Qxe5 17. Rc1 Rfd8 18. Qc2 {1-0 (41) Kramnik,V (2796)-Naroditsky,D (2628) Doha 2015}) 12... Ba6 {[%emt 0:10:18]} 13. Ne5 {[%emt 0:03:06]} Bxe5 {[%emt 0:13:42]} 14. dxe5 {[%emt 0:00:08]} Rb8 {[%emt 0:01:06]} 15. Qc2 {[%emt 0:06:19]} Qb6 $146 {[%emt 0:04:31]} ({Predecessor:} 15... Qc7 16. Rfb1 Rb7 17. c4 Nb6 18. Bc3 Nxc4 19. Rxb7 Qxb7 {1-0 (46) Miles,A (2590)-Reeve,J Vancouver 1981}) 16. Rfb1 {[%emt 0:00:47]} Bc4 {[%emt 0:02:52]} 17. e6 {[%emt 0:10:37]} f6 {[%emt 0:02:38]} 18. e4 {[%emt 0:01:19]} Nc7 {[%emt 0:00:29]} 19. Bc1 {[%emt 0:00:22]} Qa6 {[%emt 0:02:18]} 20. Rxb8 {[%emt 0:04:59]} Rxb8 {[%emt 0:00:41]} 21. e5 {[%emt 0:01:23]} Nxe6 {[%emt 0:02:41]} 22. exf6 $1 {[%emt 0:00:22]} exf6 {[%emt 0:00:02]} 23. h4 {[%emt 0:01:28]} Bd3 {[%emt 0:03:53]} 24. Qd1 {[%emt 0:01:14]} c4 {[%emt 0:00:09]} 25. h5 {[%emt 0:02:04]} Qb5 {[%emt 0:02:15]} 26. Ba3 {[%emt 0:01:23]} Qf5 {[%emt 0:09:02]} 27. Qf3 {[%emt 0:04:13]} Qxf3 $15 {[%emt 0:02:16]} ({And not} 27... gxh5 28. Qxc6 Ng7 29. Re1 $18) 28. Bxf3 {[%emt 0:00:01]} Rb6 {[%emt 0:00:07]} 29. Re1 {[%emt 0:02:24]} Kf7 {[%emt 0:00:05]} 30. Bc1 {[%emt 0:02:12]} Ke7 {[%emt 0:03:09]} 31. Be3 {[%emt 0:03:07]} Ra6 {[%emt 0:00:11]} 32. a4 {[%emt 0:00:38]} Kd6 {[%emt 0:01:14]} 33. hxg6 {[%emt 0:00:24]} hxg6 {[%emt 0:00:03]} 34. Bd1 {[%emt 0:00:15]} c5 {[%emt 0:01:09]} 35. Kg2 {[%emt 0:00:34]} Rb6 {[%emt 0:00:23]} 36. Bf3 {[%emt 0:01:55]} Rb3 {[%emt 0:01:50]} 37. Rc1 {[%emt 0:00:13]} Ra3 {[%emt 0:03:08]} 38. Bd1 {[%emt 0:00:48]} f5 {[%emt 0:00:59]} 39. Bh6 {[%emt 0:02:23]} Ke5 {[%emt 0:00:55]} 40. Be3 {[%emt 0:00:27]} Ra2 {[%emt 0:00:23]} 41. Kg1 {[%emt 0:00:37]} g5 {[%emt 0:01:35]} 42. f3 {[%emt 0:00:36]} f4 {[%emt 0:03:10]} 43. gxf4+ {[%emt 0:00:02]} gxf4 {[%emt 0:00:06]} 44. Bf2 {[%emt 0:00:25]} Kf5 {[%emt 0:00:10]} 45. Be1 {[%emt 0:01:46]} Ng5 {[%emt 0:01:18]} 46. Bh4 {[%emt 0:00:23]} a5 {[%emt 0:00:51]} 47. Kh1 {[%emt 0:01:22]} Kg6 {[%emt 0:01:30]} 48. Kg1 {[%emt 0:00:38]} Kh5 {[%emt 0:00:03]} 49. Be1 {[%emt 0:00:34]} Nh3+ {[%emt 0:00:04]} 50. Kh1 {[%emt 0:00:19]} Kg5 {[%emt 0:00:12]} 51. Bc2 {[%emt 0:00:50]} Bxc2 {[%emt 0:00:55]} 52. Bh4+ {[%emt 0:00:34]} Kxh4 {[%emt 0:00:25]} 53. Re1 {[%emt 0:00:30]} Ng5 {[%emt 0:00:53]} 54. Rg1 {[%emt 0:00:28]} Bf5 {[%emt 0:00:30]} 55. Rd1 {[%emt 0:00:32]} Nxf3 {[%emt 0:00:32]} 56. Rd5 {[%emt 0:00:20]} Rh2# 0-1